bitfinex/quotes_BTCUSD_20260104
["timestamp","ask_amount","ask_price","bid_price","bid_amount"]
[1767550290402,0.01096599,91191.0,91184.0,0.01096683]
[1767550290595,0.01096623,91189.0,91184.0,0.05798765]
[1767550290815,0.01096635,91188.0,91184.0,0.04702082]
[1767550291019,0.01096635,91188.0,91184.0,0.01077951]
[1767550291452,0.03288647,91187.0,91183.0,0.01096695]
[1767550291645,0.01096635,91188.0,91184.0,0.01096683]
[1767550291979,0.02192,91186.0,91183.0,0.06580137]
[1767550293344,0.02192,91186.0,91181.0,0.06580267]
[1767550293345,0.02192,91186.0,91182.0,0.01096707]
[1767550294140,0.02192,91186.0,91183.0,0.01096695]
[1767550294358,0.02192,91186.0,91182.0,0.06580236]
[1767550294560,0.000999,91182.0,91178.0,0.01096755]
[1767550294761,0.06580184,91183.0,91178.0,0.01096755]
[1767550295083,0.01096731,91180.0,91176.0,0.01096779]
[1767550295369,0.01096743,91179.0,91175.0,0.05681119]
[1767550296340,0.06580323,91181.0,91176.0,0.05681107]
[1767550296848,0.01096731,91180.0,91177.0,0.04584328]
[1767550297566,0.0658042,91180.0,91177.0,0.04584328]
[1767550298053,0.01096707,91182.0,91176.0,0.06580663]
[1767550298564,0.06580288,91182.0,91177.0,0.06580599]
[1767550298765,0.06580288,91182.0,91178.0,0.04584328]
[1767550299587,0.01096719,91181.0,91178.0,0.04584328]
[1767550301071,0.06580329,91181.0,91178.0,0.04584328]
[1767550302916,0.05483679,91180.0,91178.0,0.04584328]
[1767550304231,0.05483671,91180.0,91178.0,0.04584328]
[1767550306196,0.06580323,91181.0,91178.0,0.04584328]
[1767550306527,0.01096719,91181.0,91178.0,0.04584328]
[1767550308202,0.06580318,91181.0,91178.0,0.04584328]
[1767550308419,0.01096731,91180.0,91176.0,0.05681107]
[1767550308848,0.06580432,91180.0,91176.0,0.04584328]
[1767550310070,0.06580498,91179.0,91176.0,0.04584328]
[1767550310642,0.01096743,91179.0,91176.0,0.04584328]
[1767550311356,0.06580406,91180.0,91176.0,0.04584328]
[1767550312304,0.01096743,91179.0,91175.0,0.01096791]
[1767550312591,0.01096743,91179.0,91175.0,0.05681119]
[1767550313177,0.01096743,91179.0,91176.0,0.04584328]
[1767550315373,0.0548395,91176.0,91171.0,0.04584328]
[1767550315578,0.0548395,91176.0,91172.0,0.04584328]
[1767550315579,0.01096791,91175.0,91172.0,0.04584328]
[1767550315910,0.01096779,91176.0,91172.0,0.04584328]
[1767550316509,0.01096767,91177.0,91174.0,0.04584328]
[1767550316711,0.05483918,91176.0,91174.0,0.04584328]
[1767550319926,0.05483918,91176.0,91174.0,0.0457026]
[1767550320120,0.06580697,91176.0,91170.0,0.04584328]
[1767550320543,0.01096791,91175.0,91171.0,0.05784647]
[1767550320747,0.06580535,91178.0,91175.0,0.000999]
[1767550320950,0.01096767,91177.0,91173.0,0.04687807]
[1767550321127,0.06580609,91177.0,91173.0,0.04687807]
[1767550322142,0.00996867,91177.0,91173.0,0.05784622]
[1767550322689,0.06480725,91177.0,91173.0,0.04687807]
[1767550322989,0.06580535,91178.0,91173.0,0.11268685]
[1767550323137,0.01096755,91178.0,91173.0,0.11268685]
[1767550324353,0.01096755,91178.0,91174.0,0.01096803]
[1767550324674,0.000999,91174.0,91173.0,0.04687807]
[1767550325018,0.06580625,91177.0,91173.0,0.04687807]
[1767550325964,0.01096767,91177.0,91173.0,0.05784622]
[1767550326595,0.01096767,91177.0,91173.0,0.04687807]
[1767550326957,0.06580609,91177.0,91173.0,0.04687807]
[1767550327156,0.06580641,91178.0,91173.0,0.11268691]
[1767550327497,0.01096767,91177.0,91173.0,0.04687807]
[1767550328239,0.06580641,91178.0,91173.0,0.11268687]
[1767550329669,0.01096767,91177.0,91173.0,0.05784622]
[1767550329997,0.06580615,91177.0,91173.0,0.04687807]
[1767550330762,0.06580615,91177.0,91173.0,0.04683277]
[1767550331159,0.01096767,91177.0,91173.0,0.04683277]
[1767550331306,0.01096779,91176.0,91173.0,0.04683277]
[1767550331722,0.06580697,91176.0,91173.0,0.04683277]
[1767550331922,0.05483965,91175.0,91173.0,0.04683277]
[1767550332546,0.06580697,91176.0,91173.0,0.04683277]
[1767550332968,0.01096791,91175.0,91171.0,0.11268816]
[1767550333285,0.01096791,91175.0,91171.0,0.11254747]
[1767550333480,0.01096791,91175.0,91171.0,0.05770578]
[1767550334061,0.06580697,91176.0,91171.0,0.11254774]
[1767550334401,0.01096791,91175.0,91172.0,0.04687807]
[1767550335185,0.06580783,91175.0,91172.0,0.04687807]
[1767550335569,0.05484022,91174.0,91172.0,0.04687807]
[1767550336156,0.06580825,91174.0,91170.0,0.04687807]
[1767550336354,0.01096803,91174.0,91170.0,0.05784659]
[1767550336566,0.01096803,91174.0,91170.0,0.05780129]
[1767550336762,0.01096791,91175.0,91170.0,0.05780129]
[1767550337197,0.06580769,91175.0,91170.0,0.11264366]
[1767550337949,0.01096803,91174.0,91170.0,0.05780129]
[1767550338111,0.01096803,91174.0,91170.0,0.05766062]
[1767550338310,0.06580843,91174.0,91170.0,0.0466921]
[1767550338528,0.01096803,91174.0,91170.0,0.05766062]
[1767550338710,0.01096803,91174.0,91170.0,0.05751996]
[1767550339325,0.06580712,91176.0,91171.0,0.06581015]
[1767550339528,0.01096791,91175.0,91170.0,0.05751996]
[1767550339879,0.01096803,91174.0,91170.0,0.11236226]
[1767550340209,0.06580796,91175.0,91170.0,0.11236226]
[1767550340417,0.01096791,91175.0,91171.0,0.0109684]
[1767550341716,0.06580612,91177.0,91172.0,0.01096827]
[1767550341904,0.06580612,91177.0,91172.0,0.06580945]
[1767550342312,0.000999,91172.0,91168.0,0.04687807]
[1767550342541,0.0658104,91171.0,91166.0,0.05484497]
[1767550342665,0.0658104,91171.0,91167.0,0.04687807]
[1767550342871,0.01096852,91170.0,91167.0,0.04687807]
[1767550343296,0.06581122,91170.0,91167.0,0.04687807]
[1767550343694,0.06581017,91172.0,91167.0,0.04687807]
[1767550344721,0.06581017,91172.0,91167.0,0.05784695]
[1767550344722,0.0109684,91171.0,91167.0,0.05784695]
[1767550344931,0.06581017,91172.0,91167.0,0.05784695]
[1767550346125,0.06581017,91172.0,91168.0,0.04687807]
[1767550346530,0.06581062,91171.0,91168.0,0.04587907]
[1767550346737,0.06581017,91172.0,91168.0,0.04587907]
[1767550347153,0.0109684,91171.0,91166.0,0.032889]
[1767550347301,0.0109684,91171.0,91167.0,0.01096888]
[1767550347781,0.06580976,91172.0,91167.0,0.01096888]
[1767550347981,0.06580948,91173.0,91168.0,0.01096876]
[1767550348226,0.06580948,91173.0,91168.0,0.05784683]
[1767550348420,0.06580948,91173.0,91168.0,0.1126904]
[1767550348598,0.06580948,91173.0,91168.0,0.11269061]
[1767550349289,0.01096827,91172.0,91168.0,0.05784683]
[1767550349747,0.01096779,91176.0,91172.0,0.000999]
[1767550349951,0.01096779,91176.0,91172.0,0.01096827]
[1767550350438,0.06580648,91178.0,91173.0,0.01096815]
[1767550350655,0.01096767,91177.0,91172.0,0.06580952]
[1767550352138,0.06580613,91177.0,91172.0,0.06580952]
[1767550353276,0.06580648,91178.0,91177.0,0.000999]
[1767550353484,0.06580648,91178.0,91173.0,0.0658089]
[1767550353852,0.01096767,91177.0,91173.0,0.01096815]
[1767550354240,0.01096779,91176.0,91172.0,0.06580952]
[1767550354388,0.01096779,91176.0,91172.0,0.01096827]
[1767550355014,0.06580634,91177.0,91172.0,0.06580952]
[1767550356490,0.01096779,91176.0,91172.0,0.01096827]
[1767550356679,0.01096779,91176.0,91172.0,0.01092405]
[1767550359210,0.01096779,91176.0,91172.0,0.01087983]
[1767550360925,0.01096779,91176.0,91171.0,0.05484176]
[1767550361142,0.01096779,91176.0,91172.0,0.01096827]
[1767550362806,0.06580704,91176.0,91171.0,0.06581016]
[1767550364338,0.01096779,91176.0,91172.0,0.01096827]
[1767550365597,0.01096767,91177.0,91172.0,0.06580942]
[1767550365790,0.01096755,91178.0,91174.0,0.01096803]
[1767550366682,0.06580558,91178.0,91173.0,0.06580875]
[1767550366889,0.01096767,91177.0,91173.0,0.06580875]
[1767550367050,0.06580558,91178.0,91173.0,0.06580875]
[1767550367531,0.06580558,91178.0,91173.0,0.06580854]
[1767550368069,0.01096755,91178.0,91174.0,0.01096803]
[1767550368613,0.06580546,91178.0,91174.0,0.01096803]
[1767550369838,0.02192,91180.0,91178.0,0.000999]
[1767550370235,0.03288731,91180.0,91176.0,0.01096779]
[1767550370816,0.08772392,91180.0,91175.0,0.06580708]
[1767550371193,0.03288731,91180.0,91176.0,0.06580671]
[1767550371358,0.03288731,91180.0,91176.0,0.01096779]
[1767550372139,0.03288731,91180.0,91176.0,0.06580668]
[1767550372546,0.02192,91180.0,91176.0,0.06580668]
[1767550372924,0.02192,91180.0,91177.0,0.01096767]
[1767550373491,0.02192,91180.0,91176.0,0.06580668]
[1767550374150,0.06580472,91179.0,91173.0,0.06580875]
[1767550374352,0.01096755,91178.0,91174.0,0.01096803]
[1767550374667,0.06580535,91178.0,91174.0,0.01096803]
[1767550375097,0.06580472,91179.0,91174.0,0.06580817]
[1767550375925,0.01096755,91178.0,91173.0,0.06580875]
[1767550376094,0.01096755,91178.0,91174.0,0.01096803]
[1767550377306,0.06580472,91179.0,91174.0,0.01096803]
[1767550377307,0.06580472,91179.0,91174.0,0.06580799]
[1767550379254,0.01096743,91179.0,91175.0,0.06580747]
[1767550379984,0.01096743,91179.0,91175.0,0.01096791]
[1767550381113,0.01096755,91178.0,91174.0,0.01096803]
[1767550381300,0.01096755,91178.0,91171.0,0.0109684]
[1767550381301,0.06580485,91179.0,91170.0,0.18177107]
[1767550381646,0.06580485,91179.0,91172.0,0.05484139]
[1767550381866,0.06580485,91179.0,91173.0,0.0548403]
[1767550382074,0.01096743,91179.0,91171.0,0.0109684]
[1767550382284,0.01096767,91177.0,91173.0,0.01096815]
[1767550382491,0.01096767,91177.0,91172.0,0.01096827]
[1767550382705,0.01096779,91176.0,91171.0,0.06581028]
[1767550383670,0.01096779,91176.0,91172.0,0.01096827]
[1767550383876,0.0658066,91177.0,91172.0,0.06580952]
[1767550384466,0.0658066,91177.0,91172.0,0.01096827]
[1767550384673,0.0658066,91177.0,91172.0,0.06580964]
[1767550385005,0.01096779,91176.0,91172.0,0.01096827]
[1767550385628,0.06580697,91176.0,91171.0,0.06581028]
[1767550386277,0.06580769,91175.0,91169.0,0.06581174]
[1767550386557,0.01096803,91174.0,91170.0,0.01096852]
[1767550387245,0.06580769,91175.0,91170.0,0.01096852]
[1767550387246,0.06580769,91175.0,91170.0,0.06581092]
[1767550387460,0.01096791,91175.0,91171.0,0.0109684]
[1767550387697,0.01096791,91175.0,91170.0,0.05484228]
[1767550387698,0.06580795,91175.0,91170.0,0.05484228]
[1767550387864,0.01096803,91174.0,91169.0,0.06581174]
[1767550388457,0.06580795,91175.0,91170.0,0.06581082]
[1767550388789,0.01096791,91175.0,91171.0,0.0109684]
[1767550388963,0.06580693,91176.0,91171.0,0.06581025]
[1767550390070,0.06580693,91176.0,91171.0,0.0109684]
[1767550390589,0.01096791,91175.0,91171.0,0.0109684]
[1767550391768,0.06580753,91175.0,91170.0,0.06581082]
[1767550395905,0.06580833,91174.0,91168.0,0.06581149]
[1767550396243,0.06580833,91174.0,91169.0,0.06581164]
[1767550396768,0.06580833,91174.0,91170.0,0.01096852]
[1767550396942,0.01096815,91173.0,91169.0,0.01096864]
[1767550397340,0.06580833,91174.0,91169.0,0.06581159]
[1767550397650,0.06580833,91174.0,91170.0,0.01096852]
[1767550397843,0.01096803,91174.0,91170.0,0.01096852]
[1767550399806,0.06580828,91174.0,91170.0,0.01096852]
[1767550401538,0.01096803,91174.0,91170.0,0.01096852]
[1767550404765,0.04640533,91174.0,91171.0,0.0109684]
[1767550404962,0.04640533,91174.0,91170.0,0.05484223]
[1767550405163,0.04640533,91174.0,91168.0,0.03774926]
[1767550405377,0.01525692,91173.0,91169.0,0.06581184]
[1767550405777,0.01425792,91172.0,91169.0,0.01096864]
[1767550405958,0.01425792,91172.0,91169.0,0.06581178]
[1767550406206,0.01096815,91173.0,91170.0,0.04870695]
[1767550406328,0.06580838,91174.0,91169.0,0.06581178]
[1767550406529,0.06580838,91174.0,91169.0,0.11451873]
[1767550407653,0.06580838,91174.0,91170.0,0.04870695]
[1767550407855,0.0658091,91173.0,91167.0,0.01096888]
[1767550408084,0.000999,91170.0,91168.0,0.1035507]
[1767550408311,0.01096779,91176.0,91172.0,0.04870695]
[1767550408312,0.06580778,91176.0,91172.0,0.04870695]
[1767550408602,0.01096755,91178.0,91172.0,0.05967522]
[1767550408807,0.01096767,91177.0,91173.0,0.04870695]
[1767550408952,0.06580582,91178.0,91174.0,0.04870695]
[1767550409350,0.01096755,91178.0,91174.0,0.05967498]
[1767550410302,0.01096755,91178.0,91174.0,0.01096803]
[1767550410485,0.02522547,91178.0,91174.0,0.01096803]
[1767550410698,0.01425792,91177.0,91174.0,0.01096803]
[1767550411496,0.01425792,91177.0,91174.0,0.06580815]
[1767550413493,0.01096743,91179.0,91175.0,0.0658072]
[1767550413695,0.01096743,91179.0,91176.0,0.04865475]
[1767550413896,0.08772429,91180.0,91176.0,0.04865475]
[1767550415449,0.01096743,91179.0,91176.0,0.04865475]
[1767550416414,0.06580463,91179.0,91176.0,0.04865475]
[1767550419253,0.08772429,91180.0,91176.0,0.04865475]
[1767550419481,0.01096743,91179.0,91176.0,0.04865475]
[1767550420774,0.06580463,91179.0,91175.0,0.01096791]
[1767550420978,0.00229134,91178.0,91174.0,0.06580816]
[1767550421182,0.00229134,91178.0,91175.0,0.01096791]
[1767550421534,0.06580463,91179.0,91176.0,0.04992838]
[1767550423280,0.06379479,91179.0,91176.0,0.04992838]
[1767550423481,0.06379479,91179.0,91176.0,0.04892938]
[1767550423831,0.03288731,91180.0,91176.0,0.04892938]
[1767550424041,0.08772407,91180.0,91176.0,0.04892938]
[1767550425809,0.02192,91180.0,91176.0,0.05989717]
[1767550426019,0.03288731,91180.0,91176.0,0.05989717]
[1767550426241,0.08772409,91180.0,91176.0,0.04892938]
[1767550426440,0.01096743,91179.0,91176.0,0.04892938]
[1767550427061,0.02192,91180.0,91176.0,0.05989717]
[1767550427679,0.03288731,91180.0,91176.0,0.04892938]
[1767550428246,0.03288731,91180.0,91176.0,0.05989717]
[1767550431383,0.08772399,91180.0,91176.0,0.04892938]
[1767550431738,0.01096743,91179.0,91176.0,0.04892938]
[1767550436306,0.06580465,91179.0,91176.0,0.04892938]
[1767550436508,0.00329034,91178.0,91175.0,0.01096791]
[1767550437275,0.00329034,91178.0,91174.0,0.06580717]
[1767550437677,0.01096743,91179.0,91175.0,0.01096791]
[1767550437881,0.01096743,91179.0,91175.0,0.06089629]
[1767550438192,0.08772399,91180.0,91175.0,0.11573583]
[1767550438400,0.01096743,91179.0,91175.0,0.06089629]
[1767550441067,0.01096743,91179.0,91176.0,0.04831651]
[1767550441227,0.08772399,91180.0,91176.0,0.04831651]
[1767550441600,0.03288731,91180.0,91177.0,0.04831651]
[1767550442003,0.087724,91180.0,91177.0,0.04831651]
[1767550443675,0.03288731,91180.0,91177.0,0.04831651]
[1767550443875,0.08772408,91180.0,91177.0,0.04831651]
[1767550444196,0.02192,91180.0,91177.0,0.04831651]
[1767550444797,0.02421134,91180.0,91177.0,0.01096767]
[1767550445019,0.00329034,91179.0,91176.0,0.06580665]
[1767550448501,0.020921,91180.0,91177.0,0.04831651]
[1767550449734,0.020921,91180.0,91177.0,0.04731751]
[1767550449912,0.020921,91180.0,91177.0,0.11312336]
[1767550450095,0.020921,91180.0,91178.0,0.04831651]
[1767550450523,0.020921,91180.0,91174.0,0.01096803]
[1767550450695,0.020921,91180.0,91174.0,0.05928454]
[1767550451104,0.020921,91180.0,91177.0,0.05483797]
[1767550451335,0.020921,91180.0,91178.0,0.05483777]
[1767550451640,0.02192,91180.0,91178.0,0.05483776]
[1767550451839,0.02192,91180.0,91178.0,0.01096755]
[1767550452044,0.01096707,91182.0,91178.0,0.01096755]
[1767550452259,0.02192,91180.0,91177.0,0.11412215]
[1767550455135,0.02192,91180.0,91177.0,0.05928418]
[1767550456255,0.02192,91180.0,91178.0,0.05483778]
[1767550456416,0.06580251,91182.0,91177.0,0.11412206]
[1767550456609,0.02192,91181.0,91177.0,0.05928418]
[1767550457288,0.02192,91181.0,91177.0,0.11412243]
[1767550457719,0.03288719,91181.0,91177.0,0.05928418]
[1767550457927,0.08772338,91181.0,91177.0,0.04831651]
[1767550458146,0.03288719,91181.0,91177.0,0.05928418]
[1767550458305,0.08772328,91181.0,91177.0,0.04831651]
[1767550458510,0.03288719,91181.0,91177.0,0.05928418]
[1767550459749,0.02192,91181.0,91177.0,0.11412243]
[1767550460303,0.03288719,91181.0,91177.0,0.04831651]
[1767550460751,0.03288719,91181.0,91177.0,0.05928418]
[1767550461178,0.08772349,91181.0,91177.0,0.04831651]
[1767550461362,0.03288719,91181.0,91177.0,0.05928418]
[1767550461763,0.02192,91181.0,91177.0,0.1141223]
[1767550464674,0.04914618,91180.0,91177.0,0.06580579]
[1767550465196,0.02192,91181.0,91178.0,0.01096755]
[1767550465482,0.02192,91181.0,91178.0,0.06580493]
[1767550465687,0.02192,91181.0,91178.0,0.01096755]
[1767550466383,0.02192,91181.0,91178.0,0.04831651]
[1767550467033,0.02192,91181.0,91178.0,0.05928406]
[1767550468581,0.02192,91181.0,91178.0,0.04831651]
[1767550468961,0.02192,91181.0,91178.0,0.05928406]
[1767550469167,0.00260585,91180.0,91178.0,0.01096755]
[1767550469493,0.00260585,91180.0,91177.0,0.06580579]
[1767550470251,0.00260585,91180.0,91177.0,0.01096767]
[1767550470649,0.00260585,91180.0,91176.0,0.06580575]
[1767550470851,0.00260585,91180.0,91177.0,0.01096767]
[1767550472734,0.00260585,91180.0,91177.0,0.06580604]
[1767550473063,0.00260585,91180.0,91177.0,0.01096767]
[1767550473756,0.00260585,91180.0,91177.0,0.06580591]
[1767550473958,0.02192,91181.0,91178.0,0.04539685]
[1767550474278,0.03288719,91181.0,91178.0,0.04539685]
[1767550474580,0.02192,91181.0,91178.0,0.04539685]
[1767550475140,0.03288719,91181.0,91178.0,0.04539685]
[1767550476096,0.02192,91181.0,91178.0,0.04539685]
[1767550476247,0.03288719,91181.0,91178.0,0.04539685]
[1767550478846,0.02192,91181.0,91178.0,0.04539685]
[1767550478955,0.03288719,91181.0,91178.0,0.04539685]
[1767550479156,0.03288719,91181.0,91178.0,0.04535156]
[1767550481178,0.08772321,91181.0,91178.0,0.04435256]
[1767550483752,0.03288719,91181.0,91178.0,0.04435256]
[1767550486353,0.08772332,91181.0,91178.0,0.04435256]
[1767550486559,0.020921,91181.0,91178.0,0.05913205]
[1767550487104,0.020921,91181.0,91179.0,0.0481645]
[1767550487459,0.02083256,91181.0,91179.0,0.0481645]
[1767550489167,0.07566858,91181.0,91179.0,0.0481645]
[1767550489753,0.02083256,91181.0,91179.0,0.0481645]
[1767550490612,0.02074411,91181.0,91179.0,0.0481645]
[1767550491761,0.02065566,91181.0,91179.0,0.0481645]
[1767550491955,0.02056721,91181.0,91179.0,0.0481645]
[1767550498010,0.01559341,91181.0,91179.0,0.05483701]
[1767550498216,0.01559341,91181.0,91180.0,0.0481645]
[1767550500763,0.01550496,91181.0,91180.0,0.0481645]
[1767550501036,0.000999,91180.0,91177.0,0.06580552]
[1767550501215,0.06580505,91179.0,91174.0,0.01096803]
[1767550501417,0.01096743,91179.0,91175.0,0.01096791]
[1767550501587,0.06580471,91179.0,91174.0,0.11160949]
[1767550501943,0.06580471,91179.0,91175.0,0.04580174]
[1767550502084,0.06580471,91179.0,91175.0,0.04480274]
[1767550502483,0.06580389,91180.0,91176.0,0.04580174]
[1767550502484,0.01096731,91180.0,91176.0,0.04580174]
[1767550502735,0.08130857,91181.0,91177.0,0.04580174]
[1767550504319,0.02647215,91181.0,91177.0,0.05676941]
[1767550505703,0.08130845,91181.0,91177.0,0.04580174]
[1767550506122,0.06580405,91180.0,91177.0,0.04580174]
[1767550506373,0.05483769,91179.0,91177.0,0.04580174]
[1767550507169,0.02647215,91181.0,91177.0,0.04580174]
[1767550507383,0.08130866,91181.0,91177.0,0.04580174]
[1767550508025,0.02192,91180.0,91178.0,0.01096755]
[1767550508233,0.020921,91180.0,91178.0,0.05676929]
[1767550508433,0.020921,91180.0,91179.0,0.04580174]
[1767550508661,0.020921,91180.0,91179.0,0.10063892]
[1767550508892,0.02192,91180.0,91179.0,0.11160635]
[1767550511018,0.02183155,91180.0,91179.0,0.11160635]
[1767550513468,0.02183155,91180.0,91179.0,0.11060735]
[1767550514288,0.01096695,91183.0,91179.0,0.11060735]
[1767550514491,0.02192,91180.0,91179.0,0.11060735]
[1767550514891,0.02192,91180.0,91179.0,0.05676917]
[1767550515055,0.02192,91180.0,91179.0,0.04580174]
[1767550515452,0.06580263,91182.0,91179.0,0.04580174]
[1767550516010,0.01096707,91182.0,91179.0,0.04580174]
[1767550516207,0.02192,91181.0,91179.0,0.04580174]
[1767550516608,0.02192,91180.0,91179.0,0.04580174]
[1767550517115,0.01096707,91182.0,91179.0,0.04580174]
[1767550517311,0.06580251,91182.0,91179.0,0.04580174]
[1767550517734,0.02192,91181.0,91179.0,0.04580174]
[1767550518098,0.06580251,91182.0,91179.0,0.04580174]
[1767550518487,0.02192,91181.0,91179.0,0.04580174]
[1767550519527,0.02192,91180.0,91179.0,0.04580174]
[1767550519709,0.06580251,91182.0,91179.0,0.04580174]
[1767550520112,0.02192,91181.0,91179.0,0.04580174]
[1767550520427,0.02192,91180.0,91179.0,0.04580174]
[1767550520634,0.06580251,91182.0,91179.0,0.04580174]
[1767550521032,0.02192,91181.0,91179.0,0.04580174]
[1767550521327,0.06580251,91182.0,91179.0,0.04580174]
[1767550521741,0.02192,91181.0,91179.0,0.04580174]
[1767550521940,0.02192,91180.0,91179.0,0.04580174]
[1767550522914,0.06580251,91182.0,91179.0,0.04580174]
[1767550523115,0.02192,91181.0,91179.0,0.04580174]
[1767550523315,0.02192,91180.0,91179.0,0.04580174]
[1767550524013,0.02192,91180.0,91178.0,0.04580174]
[1767550525085,0.02192,91179.0,91178.0,0.04580174]
[1767550525296,0.020921,91179.0,91178.0,0.04580174]
[1767550526192,0.02192,91180.0,91178.0,0.04580174]
[1767550526741,0.02182941,91180.0,91178.0,0.04580174]
[1767550526992,0.02192,91180.0,91178.0,0.04580174]
[1767550527896,0.06580251,91182.0,91178.0,0.04580174]
[1767550528054,0.02192,91181.0,91178.0,0.04580174]
[1767550528255,0.02192,91180.0,91178.0,0.04580174]
[1767550529073,0.06580251,91182.0,91178.0,0.04580174]
[1767550529268,0.02192,91180.0,91178.0,0.04580174]
[1767550529463,0.06580251,91182.0,91178.0,0.04580174]
[1767550529464,0.01096719,91181.0,91178.0,0.04580174]
[1767550529685,0.02192,91180.0,91178.0,0.04580174]
[1767550531014,0.02192,91180.0,91178.0,0.04480274]
[1767550531511,0.07675662,91180.0,91178.0,0.04480274]
[1767550532002,0.02192,91180.0,91178.0,0.04480274]
[1767550534211,0.02192,91180.0,91177.0,0.06580584]
[1767550534409,0.020921,91180.0,91178.0,0.05483761]
[1767550535575,0.02085234,91180.0,91178.0,0.05483761]
[1767550536211,0.02085234,91180.0,91178.0,0.10180651]
[1767550536937,0.02085234,91180.0,91179.0,0.0469689]
[1767550538640,0.02078368,91180.0,91179.0,0.0469689]
[1767550541039,0.01096707,91182.0,91179.0,0.0469689]
[1767550541241,0.02192,91181.0,91179.0,0.0459699]
[1767550542477,0.0218294,91181.0,91179.0,0.0459699]
[1767550545744,0.02192,91180.0,91176.0,0.03446988]
[1767550545945,0.02192,91180.0,91175.0,0.01096791]
[1767550545946,0.02192,91180.0,91178.0,0.05483775]
[1767550546147,0.02192,91180.0,91178.0,0.0658053]
[1767550546351,0.02192,91180.0,91177.0,0.06580559]
[1767550546770,0.01096707,91182.0,91178.0,0.01096755]
[1767550546969,0.02192,91181.0,91178.0,0.01096755]
[1767550547417,0.06845356,91181.0,91178.0,0.01096755]
[1767550547584,0.02192,91181.0,91178.0,0.01096755]
[1767550547779,0.04653356,91180.0,91177.0,0.02677314]
[1767550547984,0.04653356,91180.0,91177.0,0.03774081]
[1767550548762,0.02192,91179.0,91177.0,0.03774081]
[1767550548965,0.00261704,91178.0,91177.0,0.03774081]
[1767550549201,0.00161804,91178.0,91177.0,0.03774081]
[1767550550352,0.02192,91179.0,91177.0,0.03774081]
[1767550550558,0.02192,91179.0,91178.0,0.0469689]
[1767550552483,0.06580259,91182.0,91178.0,0.0469689]
[1767550552811,0.02192,91181.0,91178.0,0.0469689]
[1767550554422,0.03288719,91181.0,91178.0,0.0469689]
[1767550554597,0.03288719,91181.0,91178.0,0.0459699]
[1767550554778,0.03288719,91181.0,91174.0,0.05483976]
[1767550554779,0.01955742,91178.0,91174.0,0.06580779]
[1767550554963,0.01955742,91178.0,91175.0,0.01096791]
[1767550555364,0.01955742,91178.0,91175.0,0.06580711]
[1767550555990,0.01955742,91178.0,91175.0,0.01096791]
[1767550556836,0.01955742,91178.0,91175.0,0.0658075]
[1767550557943,0.06580428,91180.0,91175.0,0.0658075]
[1767550558146,0.06580428,91180.0,91176.0,0.0469689]
[1767550558536,0.01096743,91179.0,91176.0,0.0469689]
[1767550558730,0.06580428,91180.0,91176.0,0.0469689]
[1767550560221,0.06580473,91179.0,91176.0,0.0469689]
[1767550562885,0.05483806,91178.0,91176.0,0.0469689]
[1767550563260,0.05483829,91178.0,91176.0,0.0469689]
[1767550563455,0.06580473,91179.0,91176.0,0.0469689]
[1767550565209,0.01096743,91179.0,91176.0,0.0469689]
[1767550567611,0.06580494,91180.0,91176.0,0.0469689]
[1767550567812,0.06580494,91180.0,91175.0,0.06580745]
[1767550568067,0.06580494,91180.0,91176.0,0.0463095]
[1767550568257,0.01096743,91179.0,91175.0,0.06580745]
[1767550568405,0.01096743,91179.0,91175.0,0.01096791]
[1767550568945,0.06580494,91180.0,91175.0,0.06580745]
[1767550569124,0.01096659,91186.0,91181.0,0.06580307]
[1767550569328,0.02192,91191.0,91182.0,0.01096707]
[1767550569530,0.06579748,91189.0,91184.0,0.01096683]
[1767550569825,0.01096623,91189.0,91185.0,0.01096671]
[1767550570034,0.06579712,91190.0,91185.0,0.01096671]
[1767550570232,0.00571935,91194.0,91193.0,0.05482876]
[1767550570414,0.00571935,91194.0,91192.0,0.0548292]
[1767550570617,0.03288527,91197.0,91193.0,0.01096575]
[1767550570822,0.03288527,91197.0,91192.0,0.01096587]
[1767550571022,0.08771176,91197.0,91192.0,0.01096587]
[1767550571222,0.03288527,91197.0,91192.0,0.06579496]
[1767550571472,0.03288527,91197.0,91192.0,0.06579519]
[1767550571765,0.03288527,91197.0,91193.0,0.06579446]
[1767550571766,0.02192,91197.0,91193.0,0.06579446]
[1767550572787,0.02192,91197.0,91194.0,0.06579378]
[1767550573393,0.02192,91197.0,91193.0,0.06579446]
[1767550573559,0.02192,91197.0,91194.0,0.0463095]
[1767550574413,0.03288527,91197.0,91194.0,0.0463095]
[1767550575012,0.08771169,91197.0,91194.0,0.0463095]
[1767550575194,0.08771172,91197.0,91194.0,0.0463095]
[1767550575378,0.03288527,91197.0,91194.0,0.0463095]
[1767550575891,0.02192,91197.0,91194.0,0.0463095]
[1767550578257,0.08771184,91197.0,91194.0,0.0463095]
[1767550578465,0.06579512,91193.0,91180.0,0.56318579]
[1767550578666,0.02192,91197.0,91160.0,0.43878589]
[1767550578667,0.01096671,91185.0,91175.0,0.01096791]
[1767550578823,0.01096671,91185.0,91175.0,0.07920241]
[1767550578824,0.02193378,91184.0,91175.0,0.07920241]
[1767550579033,0.02194606,91177.0,91175.0,0.03289291]
[1767550579229,0.02194606,91177.0,91170.0,0.065811]
[1767550579436,0.06580728,91176.0,91172.0,0.03289291]
[1767550579635,0.06580593,91178.0,91176.0,0.000999]
[1767550579816,0.06580468,91179.0,91176.0,0.000999]
[1767550580019,0.01096731,91180.0,91175.0,0.01096791]
[1767550580253,0.01096731,91180.0,91174.0,0.06580773]
[1767550580430,0.06580326,91181.0,91176.0,0.01096779]
[1767550581152,0.06580295,91182.0,91176.0,0.06580638]
[1767550581317,0.06580295,91182.0,91181.0,0.02537472]
[1767550581524,0.01096719,91181.0,91177.0,0.0463095]
[1767550582548,0.01096707,91182.0,91177.0,0.0463095]
[1767550582753,0.01096719,91181.0,91177.0,0.0463095]
[1767550582973,0.0658025,91182.0,91177.0,0.05727717]
[1767550583352,0.01096719,91181.0,91177.0,0.0463095]
[1767550583547,0.0658025,91182.0,91177.0,0.0463095]
[1767550583548,0.06580254,91182.0,91177.0,0.0463095]
[1767550583773,0.01096719,91181.0,91177.0,0.0463095]
[1767550583948,0.06580254,91182.0,91177.0,0.05727717]
[1767550584156,0.01096731,91180.0,91177.0,0.0463095]
[1767550584479,0.06580322,91181.0,91177.0,0.0463095]
[1767550584786,0.06580446,91180.0,91177.0,0.0463095]
[1767550584986,0.06580446,91180.0,91177.0,0.0453105]
[1767550585982,0.05483743,91179.0,91177.0,0.0453105]
[1767550586481,0.0658039,91180.0,91177.0,0.0453105]
[1767550587046,0.06580516,91179.0,91169.0,0.55450991]
[1767550587250,0.0658039,91180.0,91164.0,0.01096924]
[1767550587251,0.01096852,91170.0,91164.0,0.01096924]
[1767550587453,0.00609951,91170.0,91168.0,0.0463095]
[1767550587812,0.06581093,91171.0,91165.0,0.01096912]
[1767550587813,0.024407,91171.0,91166.0,0.0463095]
[1767550587993,0.21936071,91175.0,91166.0,0.0572785]
[1767550587994,0.05484248,91172.0,91166.0,0.0572785]